bitfinex-derivatives/quotes_ETHF0:USTF0_20250314
["timestamp","ask_amount","ask_price","bid_price","bid_amount"]
[1741970461892,3.15951,1928.2,1927.8,5.80914008]
[1741970462091,2.1223,1928.2,1928.1,1.03726]
[1741970462490,2.6564598,1928.4,1928.3,1.03716]
[1741970462792,2.0617,1928.4,1928.3,1.03716]
[1741970463095,3.0988,1928.4,1928.3,1.03716]
[1741970463490,2.0617,1928.4,1928.3,1.03716]
[1741970463801,2.0617,1928.4,1928.1,0.696]
[1741970463997,1.03732,1928.0,1927.9,3.8641]
[1741970464295,2.59308,1928.2,1927.8,1.04516008]
[1741970464296,1.03737,1927.9,1927.8,1.04516008]
[1741970464496,2.0333,1928.1,1927.8,0.00778008]
[1741970464700,1.03737,1927.9,1927.8,1.04519008]
[1741970464891,1.03737,1927.9,1927.8,2.50079008]
[1741970465088,4.24517,1927.9,1927.8,1.46338008]
[1741970465291,4.24517,1927.9,1927.8,0.00778008]
[1741970465292,2.35267,1927.9,1927.8,0.00778008]
[1741970466096,5.56047,1927.9,1927.8,0.00778008]
[1741970466698,2.35267,1927.9,1927.8,0.00778008]
[1741970467000,1.3153,1927.9,1927.8,0.00778008]
[1741970467202,2.35267,1927.9,1927.8,1.04521008]
[1741970467497,5.56047,1927.9,1927.8,0.00778008]
[1741970470401,2.35267,1927.9,1927.8,0.00778008]
[1741970471296,1.03748,1927.7,1927.6,28.769]
[1741970472002,3.19878,1927.7,1927.6,28.769]
[1741970472197,3.19878,1927.7,1927.6,30.0798]
[1741970473292,3.19878,1927.7,1927.6,28.769]
[1741970473499,1.03753,1927.6,1927.5,1.42948008]
[1741970473802,3.04053,1927.6,1927.5,1.42948008]
[1741970474597,1.75432,1927.7,1927.6,1.03753]
[1741970474798,1.03753,1927.6,1927.5,2.46703008]
[1741970475005,1.03753,1927.7,1927.6,1.03753]
[1741970475198,1.03753,1927.7,1927.6,3.14083]
[1741970475396,0.00778008,1927.8,1927.7,1.03748]
[1741970475593,0.00778008,1927.8,1927.7,2.45918]
[1741970475793,1.3145,1928.1,1928.0,1.03732]
[1741970475998,0.6735,1928.2,1928.1,1.03726]
[1741970476202,1.03718,1928.3,1928.2,1.03719]
[1741970476597,2.43894,1928.4,1928.3,1.03716]
[1741970477104,2.43895,1928.4,1928.3,1.03716]
[1741970477800,2.32430817,1928.5,1928.4,1.0371]
[1741970477998,1.4018,1928.6,1928.4,1.0371]
[1741970478200,1.03705,1928.5,1928.4,1.0371]
[1741970478602,2.43885,1928.6,1928.3,0.7086]
[1741970478807,1.03707,1928.5,1928.3,0.7086]
[1741970478999,1.03707,1928.5,1928.4,1.0371]
[1741970479303,1.4018,1928.6,1928.3,0.7086]
[1741970479508,1.4018,1928.6,1928.3,1.03715]
[1741970479708,1.03716,1928.3,1928.2,1.03717]
[1741970480208,2.0353,1928.4,1928.3,1.03716]
[1741970480404,1.03712,1928.4,1928.1,1.3819]
[1741970480607,1.3555,1928.4,1928.3,1.03716]
[1741970480810,1.73653,1928.6,1928.1,3.97501]
[1741970481000,1.73653,1928.6,1928.4,1.0371]
[1741970481001,2.39257,1928.5,1928.4,1.0371]
[1741970481202,1.3555,1928.5,1928.2,2.59304]
[1741970481402,1.03707,1928.5,1928.2,5.80084]
[1741970481604,2.055,1928.6,1928.1,3.97501]
[1741970481805,1.03706,1928.5,1928.4,1.03707]
[1741970482005,1.03711,1928.4,1928.3,1.03712]
[1741970482312,1.3394,1928.5,1928.1,3.97501]
[1741970482514,1.3394,1928.5,1928.3,1.03712]
[1741970482704,1.03711,1928.4,1928.3,1.03712]
[1741970483011,1.3394,1928.5,1928.3,1.03712]
[1741970483204,2.3765,1928.5,1928.4,1.0371]
[1741970483609,1.03711,1928.4,1928.3,1.03711]
[1741970483801,2.37651,1928.4,1928.3,1.03711]
[1741970484008,1.3394,1928.4,1928.3,1.03711]
[1741970484413,2.3765,1928.4,1928.3,1.03711]
[1741970485116,1.3394,1928.4,1928.1,1.3819]
[1741970485310,2.37654,1928.4,1928.3,1.03716]
[1741970485618,1.03718,1928.3,1928.2,1.03718]
[1741970485913,1.03721,1928.2,1928.1,2.41915]
[1741970486099,2.48921,1928.2,1928.1,2.41915]
[1741970486307,2.48921,1928.2,1928.1,0.6733]
[1741970486508,1.03726,1928.1,1928.0,7.03531]
[1741970486713,0.6646,1928.2,1928.1,1.03726]
[1741970486913,1.70181,1928.2,1928.1,1.03726]
[1741970487409,2.1166,1928.2,1927.9,0.6908]
[1741970487613,1.03732,1928.0,1927.9,0.6908]
[1741970488014,1.03737,1927.9,1927.8,4.2452]
[1741970488212,1.03743,1927.8,1927.7,30.50226]
[1741970488407,1.03743,1927.8,1927.7,30.50228]
[1741970488408,2.37703,1927.8,1927.7,30.50228]
[1741970489109,0.96082015,1928.0,1927.8,1.03743]
[1741970489312,1.62542015,1928.2,1927.7,32.0585]
[1741970489508,1.03718,1928.3,1927.9,2.59344]
[1741970489714,3.33756015,1928.4,1928.3,1.03716]
[1741970489910,0.96082015,1928.4,1928.3,1.03716]
[1741970490111,1.0371,1928.4,1928.3,1.03716]
[1741970490419,5.80044,1928.5,1928.1,0.7005]
[1741970490615,1.3396,1928.3,1928.1,0.7005]
[1741970490816,1.03721,1928.2,1928.1,1.73771]
[1741970491210,1.03721,1928.2,1928.1,0.7005]
[1741970491515,2.41561,1928.2,1928.1,1.73776]
[1741970491815,2.3768,1928.3,1928.2,1.03721]
[1741970492206,2.3768,1928.3,1928.1,0.7005]
[1741970492207,1.3396,1928.3,1928.1,0.7005]
[1741970492408,2.37681,1928.3,1928.2,1.03721]
[1741970493217,1.03713,1928.4,1928.3,1.03711]
[1741970493510,1.03713,1928.4,1928.3,1.03713]
[1741970494113,1.03718,1928.3,1928.2,1.03718]
[1741970494304,1.3776,1928.5,1928.1,0.7005]
[1741970494305,1.03709,1928.5,1928.4,1.0371]
[1741970494814,2.44639,1928.5,1928.4,1.0371]
[1741970496513,2.44635,1928.5,1928.4,1.0371]
[1741970496913,1.4093,1928.5,1928.4,1.0371]
[1741970497218,2.44635,1928.5,1928.4,1.0371]
[1741970497716,1.0371,1928.4,1928.3,2.3674]
[1741970497919,1.4349,1928.4,1928.3,2.3674]
[1741970498119,2.472,1928.4,1928.3,2.3674]
[1741970498415,2.472,1928.4,1928.3,1.3303]
[1741970498819,1.03721,1928.2,1928.1,0.7005]
[1741970499017,1.03721,1928.2,1928.1,1.73773]
[1741970499317,1.03721,1928.2,1928.1,1.73775]
[1741970499819,2.4721,1928.3,1928.2,1.03721]
[1741970500224,2.4721,1928.3,1928.2,1.3571]
[1741970500420,2.4721,1928.3,1928.2,2.39431]
[1741970500723,2.4721,1928.3,1928.2,1.3571]
[1741970501215,1.03732,1928.0,1927.9,7.74806]
[1741970501408,1.03732,1928.0,1927.9,0.7127]
[1741970501613,1.03732,1928.0,1927.9,1.75007]
[1741970502214,3.96528,1928.2,1927.8,4.24518]
[1741970502423,1.03737,1927.9,1927.8,3.2078]
[1741970502719,1.03737,1927.9,1927.8,1.3571]
[1741970503121,1.03737,1927.9,1927.8,2.39453]
[1741970503322,2.35017,1927.9,1927.8,2.39453]
[1741970504121,1.3128,1927.9,1927.8,2.39453]
[1741970505121,2.35017,1927.9,1927.8,2.39453]
[1741970505323,2.35017,1927.9,1927.8,1.3571]
[1741970505715,2.35017,1927.9,1927.8,2.39453]
[1741970505912,0.96082015,1928.1,1928.0,1.03732]
[1741970506119,2.27362015,1928.4,1928.3,1.03716]
[1741970506319,3.07395,1928.4,1928.3,1.03716]
[1741970506522,3.07394,1928.4,1928.3,1.03716]
[1741970507216,0.6646,1928.5,1928.2,4.5205]
[1741970507420,0.6905,1928.6,1928.2,7.11344]
[1741970507618,1.75356,1928.9,1928.8,1.03689]
[1741970508019,2.40772015,1929.1,1928.7,2.60010008]
[1741970508225,0.7167,1929.2,1929.1,1.03673]
[1741970508427,2.1636,1929.2,1929.1,1.03673]
[1741970509318,2.1636,1929.2,1929.0,1.3127]
[1741970509319,0.96082015,1929.4,1929.3,1.03662]
[1741970509518,1.3761,1929.5,1929.1,1.3481]
[1741970509721,1.03658,1929.4,1929.2,2.46363]
[1741970509922,1.03658,1929.4,1929.3,1.427]
[1741970510127,1.03667,1929.2,1929.1,0.6868]
[1741970510723,9.61512,1929.5,1929.0,3.2078]
[1741970510928,1.03673,1929.1,1929.0,4.24457]
[1741970511125,1.03673,1929.1,1929.0,3.2078]
[1741970511426,1.03673,1929.1,1929.0,4.24458]
[1741970512128,1.03673,1929.2,1929.0,4.24458]
[1741970512330,1.03673,1929.2,1929.1,1.4089]
[1741970512626,1.03673,1929.2,1928.8,1.3286]
[1741970512627,1.03681,1929.0,1928.8,2.36545]
[1741970512821,1.03681,1929.0,1928.9,1.4089]
[1741970514030,1.03681,1929.0,1928.9,2.44573]
[1741970514324,1.03681,1929.0,1928.9,1.4089]
[1741970514731,1.03677,1929.1,1928.9,1.4089]
[1741970514925,1.03677,1929.1,1929.0,1.03678]
[1741970515140,1.03669,1929.2,1929.0,1.03674]
[1741970515342,1.03669,1929.2,1929.1,2.36143]
[1741970515540,1.76415,1929.3,1929.2,1.03667]
[1741970515839,1.76415,1929.3,1929.2,1.3247]
[1741970516238,1.76415,1929.3,1929.2,2.36137]
[1741970516739,1.76415,1929.3,1929.2,1.3247]
[1741970517828,1.03658,1929.4,1929.3,1.03659]
[1741970518237,1.03653,1929.5,1929.4,1.03654]
[1741970518440,1.03653,1929.5,1929.3,1.03659]
[1741970518645,1.03653,1929.5,1929.4,1.3705]
[1741970518830,7.98106902,1929.6,1929.1,3.8775]
[1741970519144,1.03665,1929.3,1929.2,1.3705]
[1741970519537,3.55057902,1929.5,1929.1,3.2078]
[1741970519743,5.79927,1929.4,1929.0,2.40726]
[1741970519934,5.79927,1929.4,1929.1,1.3705]
[1741970520234,0.6688,1929.3,1929.1,1.3705]
[1741970520638,1.03681,1929.0,1928.9,1.03682]
[1741970520941,1.03678,1929.0,1928.9,1.3705]
[1741970521138,1.03683,1929.0,1928.9,1.03681]
[1741970521641,1.03683,1928.9,1928.8,2.40736]
[1741970522541,1.03683,1928.9,1928.8,2.40739]
[1741970522741,1.03683,1928.9,1928.8,1.3705]
[1741970523139,1.03683,1928.9,1928.8,2.40739]
[1741970523841,0.6848,1929.1,1928.8,1.3705]
[1741970524042,1.03683,1929.0,1928.9,1.3517]
[1741970524339,1.03683,1929.0,1928.7,3.93728008]
[1741970524340,1.03689,1928.8,1928.7,0.00778008]
[1741970524539,0.6787,1928.9,1928.7,0.00778008]
[1741970524739,1.71558,1928.9,1928.8,1.03689]
[1741970525340,0.6787,1928.9,1928.7,0.00778008]
[1741970525545,1.71558,1928.9,1928.8,1.03689]
[1741970525941,2.67381266,1928.9,1928.8,1.03689]
[1741970526147,1.03689,1928.8,1928.7,1.40868008]
[1741970526552,1.03689,1928.8,1928.7,2.44562008]
[1741970526853,2.48569,1928.8,1928.7,2.44562008]
[1741970527647,0.6787,1928.9,1928.7,1.40868008]
[1741970527846,3.04397,1928.9,1928.8,2.46829]
[1741970528048,2.0071,1928.9,1928.8,2.46829]
[1741970528250,0.6848,1929.1,1929.0,1.03678]
[1741970528752,1.03673,1929.1,1929.0,1.03678]
[1741970528943,1.03673,1929.1,1929.0,2.46818]
[1741970529553,3.05221,1929.2,1929.1,1.03673]
[1741970529849,3.05221,1929.2,1929.1,2.46813]
[1741970530649,3.05221,1929.2,1929.1,1.4314]
[1741970532153,3.05221,1929.2,1929.1,2.46813]
[1741970532357,3.05221,1929.2,1929.1,1.4314]
[1741970532653,3.05221,1929.2,1929.1,2.46813]
[1741970533052,3.05221,1929.2,1929.1,1.4314]
[1741970533648,1.03683,1928.9,1928.8,3.2078]
[1741970533850,1.03683,1928.9,1928.8,4.5241]
[1741970534048,1.03683,1928.9,1928.8,5.56099]
[1741970534256,1.03683,1928.9,1928.8,5.56098]
[1741970534450,1.74413,1928.9,1928.8,4.5241]
[1741970534653,1.74413,1928.9,1928.8,5.56099]
[1741970535047,1.74413,1928.9,1928.8,4.5241]
[1741970535246,1.74413,1928.9,1928.8,3.2078]
[1741970535449,1.03689,1928.8,1928.7,0.00778008]
[1741970535741,3.17189,1928.8,1928.7,0.00778008]
[1741970536348,10.19069,1928.8,1928.7,0.00778008]
[1741970536552,1.0371,1928.4,1928.3,1.3163]
[1741970536747,1.0371,1928.4,1928.3,2.35346]
[1741970537146,1.0371,1928.4,1928.3,1.3163]
[1741970537353,2.4909,1928.4,1928.3,1.3163]
[1741970538148,2.4909,1928.4,1928.3,2.35346]
[1741970538460,1.4538,1928.4,1928.3,2.35346]
[1741970538654,1.04486008,1928.5,1928.4,1.0371]
[1741970538855,1.04486008,1928.5,1928.4,2.45]
[1741970539157,0.00778008,1928.5,1928.4,2.45]
[1741970539559,1.04483008,1928.5,1928.4,2.45]
[1741970539852,0.00778008,1928.5,1928.4,3.1777]
[1741970540652,0.95911281,1928.9,1928.4,4.6406]
[1741970540844,2.7274,1929.2,1929.1,1.03673]
[1741970541053,1.03667,1929.3,1929.0,1.3617]
[1741970541255,1.03667,1929.3,1929.2,1.03667]
[1741970541953,4.63702,1929.5,1929.0,1.3617]
[1741970542158,1.03671,1929.2,1929.0,1.3617]
[1741970542457,1.03673,1929.1,1929.0,1.3617]
[1741970542658,1.03673,1929.1,1929.0,2.39844]
[1741970542859,1.03673,1929.1,1929.0,1.3617]
[1741970543158,5.79976,1929.1,1928.6,29.4423]
[1741970543355,1.03685,1928.9,1928.8,1.03686]
[1741970543555,2.45712,1929.0,1928.9,1.03683]
[1741970543755,2.45712,1929.0,1928.8,1.03684]
[1741970543956,2.45712,1929.0,1928.9,1.4314]
[1741970544151,1.4203,1929.0,1928.9,2.46823]
[1741970544456,1.4203,1929.0,1928.7,3.2078]
[1741970544659,1.4203,1929.0,1928.8,2.46824]
[1741970544858,2.45708,1929.0,1928.9,2.46823]
[1741970545061,2.45708,1929.0,1928.9,1.4314]
[1741970545260,1.4203,1929.0,1928.9,2.46823]
[1741970546160,2.45708,1929.0,1928.9,2.46823]
[1741970546461,1.4203,1929.0,1928.9,2.46823]
[1741970546662,2.45708,1929.0,1928.9,2.46823]
[1741970546955,1.65751281,1929.2,1928.9,1.4314]
[1741970546956,1.03673,1929.1,1928.9,1.4314]
[1741970547162,2.37489,1929.2,1928.9,4.6392]
[1741970547363,1.03664,1929.3,1928.9,7.23129]
[1741970547559,2.37484,1929.3,1929.2,1.03667]
[1741970547858,1.3382,1929.3,1929.0,2.35014]
[1741970548053,1.03673,1929.1,1929.0,2.35014]
[1741970548256,1.3382,1929.2,1928.7,5.80016]
[1741970548557,1.46554683,1931.9,1931.7,1.03533]
[1741970548758,6.0875206,1931.8,1931.7,4.24313]
[1741970548957,3.9159,1933.0,1931.9,1.03522]
[1741970548958,105.63092858,1932.0,1931.9,1.03522]
[1741970549162,105.63092858,1932.0,1931.9,4.24302]
[1741970549658,105.63092858,1932.0,1931.9,3.2078]
[1741970549859,1.03526,1931.9,1931.7,3.2078]
[1741970550061,105.63092858,1932.0,1931.7,3.2078]
[1741970550258,105.63092858,1932.0,1931.6,0.00778008]
[1741970550259,1.3997,1931.8,1931.6,0.00778008]
[1741970550455,105.63092858,1932.0,1931.7,3.2078]
[1741970550669,105.63092858,1932.0,1931.9,4.24302]
[1741970551160,105.63092858,1932.0,1931.9,3.2078]
[1741970551471,1.03508,1932.2,1931.9,4.243]
[1741970551667,1.03506,1932.2,1932.1,3.2078]
[1741970552863,1.4037,1932.5,1932.1,3.2078]
[1741970553056,1.03496,1932.4,1932.3,3.2078]
[1741970553258,1.03506,1932.2,1932.1,3.2078]
[1741970553465,1.03527,1931.9,1931.8,3.2078]
[1741970553666,3.2078,1931.9,1931.0,7.2038]
[1741970553875,3.2078,1931.4,1931.3,1.03553]
[1741970554263,3.2078,1931.4,1931.2,1.03558]
[1741970554573,3.2078,1931.4,1930.9,35.9408]
[1741970554872,3.2078,1931.4,1931.2,1.03556]
[1741970555172,3.2078,1931.4,1931.3,1.03555]
[1741970555868,3.2078,1931.4,1931.2,3.998]
[1741970556071,3.2078,1931.4,1931.3,1.03555]
[1741970556570,3.2078,1931.4,1931.2,3.998]
[1741970556768,3.2078,1931.4,1931.3,1.03555]
[1741970557470,3.2078,1931.6,1931.3,1.03553]
[1741970557767,3.2078,1931.6,1931.5,1.03544]
[1741970558270,0.00778008,1932.0,1931.7,1.03533]
[1741970558463,0.00778008,1932.0,1931.9,1.03522]
[1741970560768,0.00778008,1932.0,1931.7,1.03528]
[1741970560769,1.03524,1931.9,1931.7,1.03528]
[1741970560974,1.03529,1931.8,1931.5,7.2098]
[1741970561175,1.4389,1931.9,1931.6,1.03535]
[1741970561472,1.4389,1931.9,1931.5,4.002]
[1741970561473,1.03539,1931.6,1931.5,1.0354]
[1741970561667,3.2078,1931.8,1931.5,1.0354]
[1741970561863,1.03539,1931.6,1931.4,1.03545]
[1741970562061,1.4389,1931.7,1931.3,7.2168]
[1741970562273,1.0354,1931.6,1931.4,1.03548]
[1741970562474,1.4389,1931.7,1931.4,1.03548]
[1741970562475,2.47426,1931.7,1931.4,1.03548]
[1741970562675,1.4389,1931.7,1931.4,1.03548]
[1741970562872,2.47425,1931.7,1931.5,1.03541]
[1741970563069,2.47425,1931.7,1931.3,7.2168]
[1741970563272,3.2078,1931.8,1931.4,2.58874]
[1741970563473,3.2078,1931.8,1931.7,1.03533]
[1741970563678,4.24311,1931.8,1931.6,1.03536]
[1741970563876,1.4389,1931.7,1931.6,1.03536]
[1741970564180,2.47423,1931.7,1931.6,1.03536]
[1741970564380,1.4389,1931.7,1931.6,1.03536]
[1741970564767,2.47426,1931.7,1931.6,1.03539]
[1741970564969,1.03539,1931.6,1931.5,1.0354]
[1741970565173,1.03539,1931.6,1931.4,1.3399]
[1741970565174,1.03544,1931.5,1931.4,1.3399]
[1741970565381,1.03544,1931.5,1931.1,2.59686008]
[1741970565382,1.03556,1931.3,1931.2,1.03559]
[1741970565674,1.3455,1931.5,1931.1,0.00778008]
[1741970565675,1.0356,1931.2,1931.1,0.00778008]
[1741970565874,5.5889,1931.2,1931.1,0.00778008]
[1741970567078,5.5889,1931.2,1930.6,7.1928]
[1741970567079,1.03588,1930.7,1930.6,1.0359]
[1741970567278,3.2078,1930.8,1930.6,1.3419]
[1741970567478,1.03587,1930.7,1930.6,2.37782]
[1741970567873,1.03587,1930.7,1930.6,1.03592]
[1741970567874,2.37347,1930.7,1930.6,1.03592]
[1741970568170,1.3376,1930.7,1930.5,1.3419]
[1741970568374,1.3376,1930.7,1930.5,0.00778008]
[1741970568375,4.24372,1930.6,1930.5,0.00778008]
[1741970580080,1.03619,1930.1,1930.0,8.40834]
[1741970580281,1.03619,1930.1,1930.0,2.41034]
[1741970580474,1.03619,1930.1,1930.0,1.3741]
[1741970580882,1.03619,1930.1,1930.0,2.12714895]
[1741970581088,1.03619,1930.1,1930.0,3.16338895]
[1741970581388,1.03619,1930.1,1930.0,2.12714895]
[1741970581685,1.03619,1930.1,1930.0,1.3741]
[1741970581879,1.03619,1930.1,1930.0,2.41034]
[1741970582086,1.03619,1930.1,1930.0,1.3741]
[1741970582988,2.35889,1930.1,1930.0,1.3741]
[1741970583592,1.03624,1930.0,1929.9,0.00778008]
[1741970583780,5.56674,1930.0,1929.9,0.00778008]
[1741970585278,3.2078,1930.3,1930.0,1.03621]
[1741970585489,1.03614,1930.2,1930.1,1.4223]
[1741970586390,2.48644,1930.2,1930.1,1.4223]
[1741970586590,1.03624,1930.0,1929.9,0.00778008]
[1741970586889,4.24404,1930.0,1929.9,0.00778008]
[1741970587089,4.24404,1930.0,1929.9,1.43008008]
[1741970587286,1.03624,1930.0,1929.9,1.43008008]
[1741970587783,3.2078,1930.2,1929.9,1.43008008]
[1741970587987,1.03624,1930.0,1929.9,2.46633008]
[1741970588185,1.03615,1930.2,1929.9,4.63788008]
[1741970588386,1.03611,1930.3,1929.9,7.22860008]
[1741970588586,1.03611,1930.3,1930.1,1.03615]
[1741970588789,3.2078,1930.4,1930.0,5.998]
[1741970588987,1.03606,1930.4,1930.3,1.03608]
[1741970589182,3.2078,1930.6,1930.2,2.59035]
[1741970589384,1.03603,1930.4,1930.3,2.39005]
[1741970589589,1.03603,1930.4,1930.3,1.354]
[1741970589785,4.24383,1930.4,1930.3,1.354]
[1741970589982,1.03608,1930.3,1930.2,5.998]
[1741970590193,1.03619,1930.1,1930.0,1.354]
[1741970590396,1.03624,1930.0,1929.9,0.00778008]
[1741970590694,2.47944,1930.0,1929.9,0.00778008]
[1741970591288,1.03654,1929.5,1929.2,9.27008]
[1741970591687,7.1048,1930.0,1929.7,1.0364]
[1741970591985,7.1048,1930.0,1929.5,2.59124]
[1741970592293,1.03619,1930.2,1930.1,1.03619]
[1741970592496,1.03616,1930.2,1930.1,1.03616]
[1741970592688,1.03619,1930.1,1930.0,1.0362]
[1741970592887,1.03618,1930.2,1930.0,1.0362]
[1741970593088,1.03618,1930.2,1930.1,1.3549]
[1741970593495,2.42018,1930.2,1930.1,1.3549]
[1741970594094,4.25167008,1930.3,1930.2,1.03614]
[1741970594293,0.00778008,1930.3,1930.2,1.03614]
[1741970594591,0.00778008,1930.3,1930.2,1.77535627]
[1741970595094,3.2078,1930.5,1930.4,1.03603]
[1741970595492,1.03591,1930.7,1930.6,1.03592]
[1741970595695,3.2078,1930.9,1930.4,1.4551]
[1741970595995,1.03598,1930.5,1930.4,2.4911]
[1741970596191,1.03598,1930.5,1930.4,1.4551]
[1741970596393,0.00778008,1930.6,1930.4,1.4551]
[1741970596787,1.04371008,1930.6,1930.5,1.77598338]
[1741970597192,0.00778008,1930.6,1930.5,1.77598338]
[1741970597392,1.04370008,1930.6,1930.5,0.74000338]
[1741970597796,2.36990008,1930.6,1930.5,0.74000338]
[1741970598200,1.04370008,1930.6,1930.5,0.74000338]
[1741970598396,1.04370008,1930.6,1930.5,2.11610338]
[1741970598799,1.04370008,1930.6,1930.5,3.15208338]
[1741970599503,1.04370008,1930.6,1930.5,2.11610338]
[1741970599897,1.04370008,1930.6,1930.5,1.3761]
[1741970600498,1.03614,1930.3,1930.0,9.2058]
[1741970600802,1.0361,1930.3,1930.2,1.03608]
[1741970601408,1.0361,1930.3,1930.2,2.36138]
[1741970601608,1.0361,1930.3,1930.2,2.36144]
[1741970601802,1.03608,1930.3,1930.2,2.3614]
[1741970602007,4.59848008,1930.6,1930.2,1.3253]
[1741970602317,1.03603,1930.4,1930.3,1.03603]
[1741970602708,1.03607,1930.4,1930.2,1.3253]
[1741970602906,8.58791008,1930.6,1930.2,1.3253]
[1741970603107,1.03607,1930.4,1930.3,1.03607]
[1741970603306,1.03611,1930.3,1930.2,1.03612]
[1741970603710,1.03614,1930.2,1930.1,1.03615]
[1741970604109,1.03619,1930.1,1930.0,7.03421]
[1741970604313,1.03619,1930.1,1930.0,5.998]
[1741970604811,1.03635,1929.8,1929.7,29.77436]
[1741970605114,4.5709,1930.0,1929.7,28.738]
[1741970605315,1.03635,1929.8,1929.7,28.738]
[1741970605707,1.03635,1929.8,1929.7,29.7744]
[1741970605907,3.2078,1930.0,1929.9,1.0363]
[1741970606102,5.17846,1931.1,1929.7,31.32899]
[1741970606103,3.2078,1930.3,1930.1,1.03619]
[1741970606408,4.5709,1930.3,1929.8,8.58889]
[1741970606614,3.2078,1930.8,1930.1,2.59048]
[1741970606912,3.2078,1930.5,1930.2,1.03609]
[1741970607112,0.00778008,1930.6,1930.2,3.902]
[1741970607409,0.00778008,1930.6,1930.5,1.03598]
[1741970607611,0.00778008,1930.6,1930.5,4.94698]
[1741970607807,3.2078,1931.0,1930.9,1.03573]
[1741970608110,3.2078,1931.5,1931.1,1.03562]
[1741970608315,1.03567,1931.1,1930.9,6.6721]
[1741970608510,7.1208,1931.6,1930.9,9.26148]
[1741970608703,4.2433,1931.4,1931.2,1.03556]
[1741970608911,1.03557,1931.3,1931.1,1.04341008]
[1741970609110,3.21558008,1931.4,1931.3,1.03555]
[1741970609315,1.03556,1931.3,1931.1,1.04339008]
[1741970609711,4.25109008,1931.4,1931.2,1.03556]
[1741970609908,3.21558008,1931.4,1931.3,1.03555]
[1741970610113,3.21558008,1931.4,1931.1,0.00778008]
[1741970610419,4.24335,1931.3,1931.1,0.00778008]
[1741970610612,1.0356,1931.2,1931.1,0.00778008]
[1741970610813,2.4585,1931.2,1931.1,0.00778008]
[1741970611822,3.1141,1931.2,1931.1,0.00778008]
[1741970613124,2.0785,1931.2,1931.1,0.00778008]
[1741970613416,3.1141,1931.2,1931.1,0.00778008]
[1741970613725,2.0785,1931.2,1931.1,1.04343008]
[1741970614117,3.2078,1931.3,1931.1,0.00778008]
[1741970614414,1.0356,1931.2,1931.1,0.00778008]
[1741970614726,2.4034,1931.2,1931.1,0.00778008]
[1741970616523,2.4034,1931.2,1931.1,1.04343008]
[1741970616722,1.3678,1931.2,1931.1,1.04343008]
[1741970617114,0.00778008,1931.4,1931.1,0.00778008]
[1741970617315,2.35650008,1931.4,1931.3,1.03555]
[1741970617511,1.03555,1931.3,1931.2,2.40306]
[1741970617824,1.0356,1931.2,1931.1,0.00778008]
[1741970618026,2.3488,1931.2,1931.1,0.00778008]
[1741970618226,1.3132,1931.2,1931.1,2.41093008]
[1741970618523,2.3488,1931.2,1931.1,2.41093008]
[1741970618723,1.3132,1931.2,1931.1,1.37528008]
[1741970619026,1.04327008,1931.4,1931.3,1.03555]
[1741970619217,0.00778008,1931.4,1931.3,1.03555]
[1741970621830,1.03555,1931.3,1931.2,1.03558]
[1741970622032,1.3382,1931.3,1931.2,2.35128]
[1741970622625,2.37375,1931.3,1931.2,1.3157]
[1741970623421,3.21558008,1931.4,1931.3,1.03555]
[1741970623620,0.00778008,1931.4,1931.3,1.03555]
[1741970624728,2.42256,1931.9,1931.7,1.03533]
[1741970624916,2.42256,1931.9,1931.8,1.4318]
[1741970626923,3.21558008,1932.0,1931.8,1.4318]
[1741970627127,3.2078,1932.5,1931.9,3.858]
[1741970627326,0.38117949,1933.0,1932.4,1.03496]
[1741970627526,0.38117949,1933.0,1932.5,14.5076]
[1741970627723,0.38117949,1933.0,1932.9,1.03469]
[1741970627923,1.4468,1933.1,1932.6,5.998]
[1741970628218,1.4468,1933.1,1932.7,1.3135]
[1741970628422,2.4814,1933.1,1932.7,2.35605008]
[1741970628626,1.4468,1933.1,1932.8,1.03472]
[1741970628924,1.4468,1933.1,1932.9,1.3135]
[1741970629120,3.2078,1933.2,1932.9,1.3135]
[1741970629325,3.2078,1933.2,1932.9,2.34815]
[1741970629524,1.4468,1933.1,1932.9,2.34815]
[1741970630231,2.4814,1933.1,1932.9,1.3135]
[1741970630435,2.48139,1933.1,1932.9,1.3135]
[1741970630729,2.48138,1933.1,1932.9,1.3135]
[1741970631120,1.03464,1933.0,1932.9,1.3135]
[1741970631431,4.5248,1933.0,1932.9,1.3135]
[1741970632831,1.03474,1932.8,1932.7,0.00778008]
[1741970633029,4.24254,1932.8,1932.7,0.00778008]
[1741970633732,5.55954,1932.8,1932.7,0.00778008]
[1741970636921,1.035,1932.4,1932.1,0.6736]
[1741970637124,1.0351,1932.2,1932.0,1.03514]
[1741970637320,3.2078,1932.2,1931.9,1.4417]
[1741970637521,1.03517,1932.0,1931.9,1.4417]
[1741970638736,1.4119,1932.0,1931.8,0.00775976]
[1741970638930,4.24302,1931.9,1931.8,0.00775976]
[1741970640530,5.56132,1931.9,1931.8,0.00775976]
[1741970641933,1.03538,1931.7,1931.5,1.4516]
[1741970642122,1.03534,1931.7,1931.6,1.03536]
[1741970642327,1.03539,1931.6,1931.5,2.487]
[1741970642523,1.03539,1931.6,1931.5,1.4516]
[1741970643130,1.03544,1931.5,1931.4,0.00775976]
[1741970643529,1.03539,1931.6,1931.4,1.04324976]
[1741970643724,2.38239,1931.6,1931.5,1.367]
[1741970644031,5.79595,1931.9,1931.5,1.367]
[1741970644236,1.03539,1931.6,1931.5,1.367]
[1741970645239,2.38239,1931.6,1931.5,1.367]
[1741970645439,2.38239,1931.6,1931.5,2.40244]
[1741970645833,3.2078,1931.9,1931.5,1.367]